Cogmind - Beta 15 @@@ ROGUE MODE // 2025.10.12 @ 14:34:24 Player: microsand Result: Destroyed by G-47 Trooper with Particle Gun Performance ------------- Evolutions (2) 1000 Regions Visited (7) 1400 Robots Destroyed (47) 235 Value Destroyed (1107) 1107 Prototype IDs (36) 720 Alien Tech Used (0) 0 Bonus (321) 321 TOTAL SCORE: 4783 Bonus ------- Follower Combat Kills 21 Aligned with FarCom 300 Cogmind --------- Core Integrity 0/550 Matter 300/300 Energy 100/100 System Corruption 0% Temperature Cool (9) Movement Core (350) Ox6 Location -8/Materials Parts ------- > --- POWER (1) -------- (None) > --- PROPULSION (3) --- (None) > --- UTILITY (5) ------ Large Storage Unit > --- WEAPON (2) ------- (None) > --- INVENTORY (15) --- Light Treads Aluminum Leg Small Storage Unit Seismic Detector Decoy Drone Bay (15/16) Assault Rifle Datajack Mining Laser Plasma Cutter Plasma Cutter Enhanced Flamer Peak State ------------ > --- POWER ------------ (None) > --- PROPULSION ------- Light Treads Improved Treads > --- UTILITY ---------- Large Storage Unit Improved Signal Interpreter Reactive Plating System Shield Trap Reconfigurator > --- WEAPON ----------- Beamcaster Shotgun > --- INVENTORY -------- Light Treads Aluminum Leg Improved Flight Unit Small Storage Unit Seismic Detector Decoy Drone Bay Assault Rifle Datajack Mining Laser Plasma Cutter Plasma Cutter Enhanced Flamer [Rating: 32] Favorites ----------- Power Ion Engine Engine Ion Engine Propulsion Light Treads Treads Light Treads Flight Unit Improved Flight Unit Utility Large Storage Unit Device Decoy Drone Bay Storage Large Storage Unit Processor Signal Interpreter Hackware System Shield Protection Light Armor Plating Weapon Beamcaster Energy Gun Beamcaster Ballistic Gun Assault Rifle Special Weapon Mining Laser Special Melee Weapon Datajack Build | -11 -10 -10 -9 -9 -9 -8 -8 ------- Run | Yrd Mat Min Mat Min Exi Min Mat Slots Evolved 4 | . . . 2 . . . 2 Power . | . . . . . . . . Propulsion 1 | . . . 1 . . . . Utility 3 | . . . 1 . . . 2 Weapon . | . . . . . . . . Parts Attached 26 | 7 1 . 6 1 3 1 7 Power 2 | 1 . . . . 1 . . Engine 2 | 1 . . . . 1 . . Core . | . . . . . . . . Reactor . | . . . . . . . . Propulsion 6 | 2 . . 3 . . . 1 Treads 4 | 2 . . 2 . . . . Leg . | . . . . . . . . Wheel . | . . . . . . . . Hover . | . . . . . . . . Flight 2 | . . . 1 . . . 1 Utility 11 | 2 1 . 1 1 1 1 4 Device 4 | 1 . . . 1 . . 2 Storage 2 | 1 1 . . . . . . Processor 2 | . . . . . 1 . 1 Hackware 1 | . . . . . . 1 . Protection 2 | . . . 1 . . . 1 Artifact . | . . . . . . . . Weapon 7 | 2 . . 2 . 1 . 2 Energy Gun 2 | . . . 1 . . . 1 Energy Cannon . | . . . . . . . . Ballistic Gun 3 | 2 . . 1 . . . . Ballistic Cannon . | . . . . . . . . Launcher . | . . . . . . . . Special Weapon 1 | . . . . . . . 1 Impact Weapon . | . . . . . . . . Slashing Weapon . | . . . . . . . . Piercing Weapon . | . . . . . . . . Special Melee Weapon 1 | . . . . . 1 . . Unidentified Prototypes 2 | . . . 1 1 . . . Parts Lost 11 | . . . 3 1 . . 7 Power 2 | . . . . 1 . . 1 Propulsion 3 | . . . 1 . . . 2 Utility 3 | . . . 1 . . . 2 Weapon 3 | . . . 1 . . . 2 Highest Loss Streak 5 | . . . 2 1 . . 5 To Critical Strikes . | . . . . . . . . Average Backups 9 | . 4 8 8 11 12 13 11 Power . | . . . 1 1 . . . Propulsion 1 | . . 1 . 1 1 1 2 Utility 3 | . 2 4 3 3 4 5 3 Weapon 3 | . 1 2 3 4 4 5 3 Tool/Special . | . . . . . . . . Unused Backups 4 | . . . . . . . 4 Power . | . . . . . . . . Propulsion 1 | . . . . . . . 1 Utility . | . . . . . . . . Weapon 1 | . . . . . . . 1 Tool/Special 2 | . . . . . . . 2 Average Slot Usage (%) 82 | . 100 100 93 74 74 86 79 Engine 9 | . 14 14 11 8 8 11 4 Treads 23 | . 28 28 30 22 22 22 16 Device 8 | . 14 14 9 10 4 . 8 Storage 11 | . 14 14 11 11 11 11 9 Processor 3 | . . . . . 6 11 9 Hackware 1 | . . . . . . 9 9 Protection 1 | . . . 9 . . . 5 Energy Gun 8 | . . . 7 11 11 11 6 Ballistic Gun 10 | . 28 28 14 11 . . 3 Special Melee Weapon 3 | . . . . . 10 11 3 Peak Build Rating 32 | 7 7 8 16 27 27 19 32 Average Rating 19 | 5 7 7 13 26 20 18 27 On Entrance 12 | . 7 7 8 14 26 16 19 Naked Turns . | . . . . . . . . Heaviest Build 47 | 15 30 30 37 47 43 29 39 Greatest Support 63 | 40 40 40 63 43 43 43 43 Greatest Overweight (x) 11 | . . . . 1 . . 11 Average Overweight (x) . | . . . . . . . . Largest Inventory Capacity 15 | 8 15 15 15 15 15 15 15 Average Capacity 14 | 7 14 15 15 15 15 15 15 Most Carried 15 | 5 7 9 10 13 15 15 14 Average Carried 10 | . 4 8 8 11 13 14 12 Final Capacity 15 | 8 15 15 15 15 15 15 15 Final Carried 14 | 1 7 9 10 13 14 14 12 Class Distribution -------------------- 100% | Mutant Dominant Class ---------------- Mutant | -10/Materials Mutant | -10/Mines Mutant | -9/Materials Mutant | -9/Mines Mutant | -9/Exiles Mutant | -8/Mines Mutant | -8/Materials Resources | -11 -10 -10 -9 -9 -9 -8 -8 ----------- Run | Yrd Mat Min Mat Min Exi Min Mat Matter Collected 933 | 354 170 37 190 38 . 40 104 Remotely . | . . . . . . . . Salvage Created 1480 | 219 279 37 517 222 . . 206 Parts 109 | 22 25 5 39 10 . . 8 Haulers Intercepted . | . . . . . . . . Recyclers Shooed 1 | . . . 1 . . . . Parts Field Recycled . | . . . . . . . . Retrieved Matter . | . . . . . . . . Parts Self-Destructed . | . . . . . . . . Prevented . | . . . . . . . . Kills | -11 -10 -10 -9 -9 -9 -8 -8 ------- Run | Yrd Mat Min Mat Min Exi Min Mat Combat Hostiles Destroyed 33 | . 7 3 14 5 . . 4 Guns 33 | . 7 3 14 5 . . 4 Classes Destroyed 7 | 3 3 . 1 . . . . Worker 3 | 2 . . 1 . . . . Tunneler 6 | 6 . . . . . . . Recycler 1 | 1 . . . . . . . Watcher 4 | . 2 . 2 . . . . Swarmer 13 | . 3 3 7 . . . . Grunt 15 | . 4 . 2 5 . . 4 Sentry 5 | . . . 5 . . . . Best Kill Streak 3 | 3 3 3 3 2 . . 2 Combat Bots Only 3 | . 3 3 3 2 . . 2 Max Kills in Single Turn 2 | 1 2 1 2 1 . . 1 Gunslinging 1 | . 1 . 1 . . . . Exploded . | . . . . . . . . Melee . | . . . . . . . . Uniques/NPCs Destroyed . | . . . . . . . . Combat | -11 -10 -10 -9 -9 -9 -8 -8 -------- Run | Yrd Mat Min Mat Min Exi Min Mat Hostile Shots Fired 261 | . 45 10 66 16 . . 124 Missed 72 | . 10 4 19 4 . . 35 Hits 189 | . 35 6 47 12 . . 89 Projectile 189 | . 35 6 47 12 . . 89 Critical Strikes 6 | . . . 3 . . . 3 Damage Taken 2469 | . 386 43 526 156 . . 1358 Core 750 | . 95 7 86 . . . 562 Absorbed by Shields . | . . . . . . . . Ignored by Resistances 71 | . . . . . . . 71 Core Remaining (%) 79 | 100 . 59 . . . 78 . Volleys Fired 108 | 20 22 6 29 8 . . 23 Largest 2 | 2 2 2 2 2 . . 2 Hottest 140 | 40 40 40 98 98 . . 140 Shots Fired 208 | 40 44 12 56 15 . . 41 Gun 204 | 40 44 12 56 15 . . 37 Cannon . | . . . . . . . . Launcher . | . . . . . . . . Special 4 | . . . . . . . 4 Kinetic 144 | 40 44 12 34 7 . . 7 Thermal 64 | . . . 22 8 . . 34 Explosive . | . . . . . . . . Electromagnetic . | . . . . . . . . Robot Hit Streak 15 | 6 10 2 8 15 . . 10 Robot Miss Streak 7 | 3 2 2 7 1 . . 3 Penetration Max . | . . . . . . . . Secondary Targets 9 | . 2 2 4 1 . . . Max Gunslinging Chain 1 | . 1 1 1 1 . . . Shots Hit Robots 134 | 25 28 5 33 12 4 1 26 Core Hits 68 | 10 16 3 20 8 . . 11 Critical Kills 2 | 2 . . . . . . . Critical Parts Destroyed 1 | . 1 . . . . . . Critical Strikes 7 | 2 1 . 2 1 . . 1 Burn 4 | . . . 2 1 . . 1 Destroy 3 | 2 1 . . . . . . Melee Attacks 6 | . . . . . 4 1 1 Impact . | . . . . . . . . Slashing . | . . . . . . . . Piercing . | . . . . . . . . Sneak Attacks 6 | . . . . . 4 1 1 Combat Hostiles . | . . . . . . . . Follow-up Attacks . | . . . . . . . . Damage Inflicted 1938 | 311 345 64 560 223 . . 435 Guns 1927 | 311 344 64 552 221 . . 435 Cannons . | . . . . . . . . Explosions . | . . . . . . . . Melee . | . . . . . . . . Ramming 11 | . 1 . 8 2 . . . Kinetic 1141 | 311 344 64 279 73 . . 70 Thermal 786 | . . . 273 148 . . 365 Explosive . | . . . . . . . . Electromagnetic . | . . . . . . . . Impact . | . . . . . . . . Slashing . | . . . . . . . . Piercing . | . . . . . . . . Highest Corruption . | . . . . . . . . Average Corruption . | . . . . . . . . Corruption Purged . | . . . . . . . . Corruption Blocked . | . . . . . . . . Overload Shots . | . . . . . . . . Overflow Damage . | . . . . . . . . Projectiles . | . . . . . . . . Explosions . | . . . . . . . . Melee . | . . . . . . . . Knockbacks 1 | . . . . 1 . . . Impact 1 | . . . . 1 . . . Kinetic . | . . . . . . . . Secondary . | . . . . . . . . Self-Inflicted Damage . | . . . . . . . . Shots . | . . . . . . . . Rammed 5 | . 1 . . 4 . . . Targets Rammed 6 | . 1 . 1 4 . . . Kicked . | . . . . . . . . Crushed 1 | . . . 1 . . . . Highest Temperature 450 | . 8 . 287 138 . . 450 Average Temperature 96 | . 3 . 75 46 . . 144 Received Heat Transfer 987 | . 132 . 162 90 . . 603 Effects 4 | . . . 1 . . . 3 Shutdowns 1 | . . . . . . . 1 Energy Bleed 1 | . . . 1 . . . . Interference 1 | . . . . . . . 1 Short Circuit 1 | . . . . . . . 1 Siege Activations . | . . . . . . . . Martial Activations . | . . . . . . . . Shielding Activations . | . . . . . . . . Robots Disrupted . | . . . . . . . . Combat Hostiles . | . . . . . . . . Robots Corrupted . | . . . . . . . . Combat Hostiles . | . . . . . . . . Parts Fried . | . . . . . . . . Impact Corruptions . | . . . . . . . . Robots Melted . | . . . . . . . . Combat Hostiles . | . . . . . . . . Parts Melted 2 | . . . 2 . . . . Heat Transferred 1739 | . . . 629 333 . . 777 Parts Sabotaged . | . . . . . . . . Parts Stolen . | . . . . . . . . Parts Stripped . | . . . . . . . . Power Chain Reactions . | . . . . . . . . Alert | -11 -10 -10 -9 -9 -9 -8 -8 ------- Run | Yrd Mat Min Mat Min Exi Min Mat Maximum Alert Level . | . . . . . . . . Low Security (%) 100 | 100 100 100 100 100 . 100 100 Level 1 . | . . . . . . . . Level 2 . | . . . . . . . . Level 3 . | . . . . . . . . Level 4 . | . . . . . . . . Level 5 . | . . . . . . . . High Security . | . . . . . . . . Max Security . | . . . . . . . . Peak Influence 196 | 10 106 91 196 63 . . 71 Initial 63 | . . 31 7 63 . . . Average 27 | 1 18 53 107 10 . . 18 Influence Increases 1088 | 45 189 70 480 135 . . 169 Destroy 0b10 Robot/C 720 | . 140 60 340 100 . . 80 Destroy 0b10 Robot/NC 75 | 45 10 . 20 . . . . Destroy Leader 168 | . 34 10 94 20 . . 10 Allied During Kill 10 | . . . 10 . . . . Successful Hack 5 | . 5 . . . . . . Disable Machine 30 | . . . . . . . 30 Destroy Structure 5 | . . . 1 . . . 4 Lose Combat Pursuer 75 | . . . 15 15 . . 45 Influence Decreases 1088 | 45 107 131 337 299 . . 169 Entered New Map 166 | . . 51 14 101 . . . Time Decay 837 | 45 107 80 273 188 . . 144 Lost Part 55 | . . . 30 . . . 25 Lost Ally 30 | . . . 20 10 . . . Squads Dispatched 2 | . . . 1 . . . 1 Investigation . | . . . . . . . . Extermination . | . . . . . . . . Reinforcement 2 | . . . 1 . . . 1 Assault . | . . . . . . . . Garrison . | . . . . . . . . Intercept . | . . . . . . . . Searches Triggered . | . . . . . . . . Construction Impeded . | . . . . . . . . Haulers Reinforced . | . . . . . . . . Active Scanning Responses . | . . . . . . . . Cargo Convoy Interrupts . | . . . . . . . . Stealth | -11 -10 -10 -9 -9 -9 -8 -8 --------- Run | Yrd Mat Min Mat Min Exi Min Mat Distress Signals 4 | . . . 4 . . . . Communications Jammed . | . . . . . . . . Distress Signals . | . . . . . . . . Times Spotted 59 | . 11 3 24 6 . . 15 Peak Tracking Total 6 | . 3 3 6 3 . . 5 Tactical Retreats 3 | . . . 1 1 . . 1 Traps | -11 -10 -10 -9 -9 -9 -8 -8 ------- Run | Yrd Mat Min Mat Min Exi Min Mat Traps Triggered 1 | . . . . . . . 1 Indirectly . | . . . . . . . . Trap Hack Attempts . | . . . . . . . . Triggered . | . . . . . . . . Disarmed . | . . . . . . . . Reprogrammed . | . . . . . . . . Reused . | . . . . . . . . Traps Extracted . | . . . . . . . . Installed . | . . . . . . . . Triggered . | . . . . . . . . Machines | -11 -10 -10 -9 -9 -9 -8 -8 ---------- Run | Yrd Mat Min Mat Min Exi Min Mat Machines Disabled 2 | . . . . . . . 2 Max in Single Turn 1 | . . . . . . . 1 Machines Repaired . | . . . . . . . . Machines Dismantled . | . . . . . . . . Machines Sabotaged . | . . . . . . . . Overloaded Fab Kills . | . . . . . . . . Hacking | -11 -10 -10 -9 -9 -9 -8 -8 --------- Run | Yrd Mat Min Mat Min Exi Min Mat Machines Accessed 7 | . 2 . 2 1 2 . . Terminals 4 | . 2 . 2 . . . . Fabricators . | . . . . . . . . Repair Stations . | . . . . . . . . Recycling Units . | . . . . . . . . Scanalyzers . | . . . . . . . . Garrison Access . | . . . . . . . . Total Hacks 18 | . 5 . 7 1 5 . . Successful 9 | . 2 . 1 1 5 . . Failed 9 | . 3 . 6 . . . . Catastrophic 2 | . 1 . 1 . . . . Database Lockouts . | . . . . . . . . Manual 13 | . 5 . 7 . 1 . . Terminals 12 | . 5 . 7 . . . . Fabricators . | . . . . . . . . Repair Stations . | . . . . . . . . Recycling Units . | . . . . . . . . Scanalyzers . | . . . . . . . . Garrison Access . | . . . . . . . . Terminal Hacks 6 | . . . . 1 5 . . Record 4 | . . . . . 4 . . Open Door 1 | . . . . 1 . . . Proto ID Catalog 1 | . . . . . 1 . . Fabricator Hacks . | . . . . . . . . Repair Station Hacks . | . . . . . . . . Recycling Unit Hacks . | . . . . . . . . Scanalyzer . | . . . . . . . . Garrison Access Hacks . | . . . . . . . . Unauthorized Hacks 3 | . 2 . 1 . . . . Terminals 3 | . 2 . 1 . . . . Botnet 3 | . 2 . 1 . . . . Fabricators . | . . . . . . . . Repair Stations . | . . . . . . . . Recycling Units . | . . . . . . . . Scanalyzers . | . . . . . . . . Garrison Access . | . . . . . . . . Data Cores Recovered . | . . . . . . . . Used . | . . . . . . . . Hacking Detections 4 | . 2 . 2 . . . . Full Trace Events . | . . . . . . . . Feedback Events . | . . . . . . . . Feedback Blocked . | . . . . . . . . Robot Schematics Acquired . | . . . . . . . . Robots Built . | . . . . . . . . Authchips . | . . . . . . . . Time . | . . . . . . . . Total Robot Build Rating . | . . . . . . . . Part Schematics Acquired . | . . . . . . . . Parts Built . | . . . . . . . . Authchips . | . . . . . . . . Time . | . . . . . . . . Total Part Build Rating . | . . . . . . . . Parts Repaired . | . . . . . . . . Time . | . . . . . . . . Parts Recycled . | . . . . . . . . Recycled Matter . | . . . . . . . . Retrieved Matter . | . . . . . . . . Retrieved Components . | . . . . . . . . Parts Scanalyzed . | . . . . . . . . Part Schematics Acquired . | . . . . . . . . Parts Damaged . | . . . . . . . . Bothacking | -11 -10 -10 -9 -9 -9 -8 -8 ------------ Run | Yrd Mat Min Mat Min Exi Min Mat Used RIF Installer . | . . . . . . . . Robots Hacked 4 | . . . . . 3 . 1 Non-combat 3 | . . . . . 2 . 1 Combat 1 | . . . . . 1 . . Robot Hacks Applied 4 | . . . . . 3 . 1 parse_system 3 | . . . . . 3 . . no_distress 1 | . . . . . . . 1 Relay Couplers Released . | . . . . . . . . Fabnet Peak Effective % . | . . . . . . . . Robots Rewired . | . . . . . . . . Allies Hacked . | . . . . . . . . Hacks Repelled . | . . . . . . . . Allies | -11 -10 -10 -9 -9 -9 -8 -8 -------- Run | Yrd Mat Min Mat Min Exi Min Mat Total Allies 2 | . . 2 . . . . . Largest Group 2 | . . 2 1 . . . . Highest-Rated Group 42 | . . 42 31 . . . . Highest-Rated Ally 31 | . . 31 31 . . . . Total Orders 1 | . . . . 1 . . . EXPLORE 1 | . . . . 1 . . . Ally Attacks 11 | . . . 11 . . . . Total Damage 102 | . . . 102 . . . . Kills 4 | . . . 4 . . . . Allies Corrupted . | . . . . . . . . Allies Melted . | . . . . . . . . Intel | -11 -10 -10 -9 -9 -9 -8 -8 ------- Run | Yrd Mat Min Mat Min Exi Min Mat Active Infowar (turns) 1498 | 124 669 176 528 . . . 1 Seismic 1498 | 124 669 176 528 . . . 1 Robot Analysis Total . | . . . . . . . . Derelict Logs Recovered 2 | . . 1 . 1 . . . Drone Launches 1 | . . . . 1 . . . Drone Recoveries . | . . . . . . . . Exploration | -11 -10 -10 -9 -9 -9 -8 -8 ------------- Run | Yrd Mat Min Mat Min Exi Min Mat Turns Passed 5194 | 232 669 176 622 1545 1074 306 570 Spaces Moved 2594 | 117 361 98 288 655 665 175 235 Core 33 | 26 . . . . . . 7 Treads 2561 | 91 361 98 288 655 665 175 228 Legs . | . . . . . . . . Wheels . | . . . . . . . . Hover . | . . . . . . . . Flight . | . . . . . . . . Fastest Speed 50 | 50 160 160 160 160 160 160 160 Average Speed 173 | 135 160 160 160 214 160 160 170 Slowest Speed 600 | 160 160 160 160 240 160 160 600 Overloaded Moves . | . . . . . . . . Propulsion Burnouts . | . . . . . . . . Robots Hopped . | . . . . . . . . Potential Cave-ins . | . . . . . . . . Cave-ins Triggered . | . . . . . . . . Exploration Rate (%) 45 | 5 56 30 40 95 91 35 15 Regions Visited 7 Branch Regions 4 Pre-discovered Areas 1 | . . . . . 1 . . Known Exits Taken 2 | . . . . . 1 1 . Unknown Exits Taken 5 | 1 1 1 1 1 . . . Scrap Searched 4 | . . . . 3 . 1 . Spaces Dug 3 | . . . . . . . 3 Terrain Destroyed 3 | . . . . . . . 3 Melee . | . . . . . . . . Projectile 3 | . . . . . . . 3 AOE . | . . . . . . . . Terrain Rammed . | . . . . . . . . Walls Destroyed . | . . . . . . . . Machines Disabled . | . . . . . . . . Actions | -11 -10 -10 -9 -9 -9 -8 -8 --------- Run | Yrd Mat Min Mat Min Exi Min Mat Total 3065 | 151 407 105 392 777 673 201 359 Wait 289 | . 17 . 62 106 . 24 80 Move 2587 | 116 360 97 287 654 664 174 235 Hop . | . . . . . . . . Pick Up 30 | 8 6 2 5 3 1 1 4 Fast Attach . | . . . . . . . . Attach 22 | 7 . . 4 1 2 1 7 Detach 3 | . . . . 1 1 . 1 Swap 9 | . 1 . 3 . 1 . 4 Drop 5 | . . . 1 . . . 4 Fire 108 | 20 22 6 29 8 . . 23 Melee 6 | . . . . . 4 1 1 Ram . | . . . . . . . . Kick . | . . . . . . . . Crush 6 | . 1 . 1 4 . . . Escape Stasis . | . . . . . . . . Rewire . | . . . . . . . . Trap . | . . . . . . . . Miscellaneous . | . . . . . . . . Route ------- -11/Scrapyard -10/Materials (discovered 2 exits: *Mat / [*Min]) -10/Mines -9/Materials -9/Mines (discovered 3 exits: *Mat x2 / *Exi) -9/Exiles (discovered 2 exits: *Min x2) -8/Mines -8/Materials History --------- Turn | Location | Event 7 | -11/Scrapyard | Discovered new exit (range 16) 233 | -11/Scrapyard | Entered Materials 308 | -10/Materials | Build established: Mutant 458 | -10/Materials | Discovered new exit (range 7) 882 | -10/Materials | Discovered new exit (range 11) 902 | -10/Materials | Entered Mines 1000 | -10/Mines | A weapon hastily lodged in a ceiling crevice suddenly fell to the ground 1042 | -10/Mines | Learned Materials emergency access door positions 1060 | -10/Mines | Discovered new exit (range 8) 1078 | -10/Mines | Entered Materials 1078 | -9/Materials | Accompanied by 1 ally 1078 | -9/Materials | Evolved 2 slots: Propulsion x1, Utility x1 1083 | -9/Materials | Led the pair of lost Derelicts to an unsafe place 1679 | -9/Materials | Discovered new exit (range 14) 1700 | -9/Materials | Entered Mines 1702 | -9/Mines | Met a Derelict bent on vengeance 1705 | -9/Mines | Found the Drone Emporium 1712 | -9/Mines | Found Prototype Device 1713 | -9/Mines | Identified Decoy Drone Bay 1898 | -9/Mines | Discovered new exit (range 7) 2429 | -9/Mines | Discovered new exit (range 4) 3143 | -9/Mines | Deemed a non-threat by the Exiles lab entrance 3145 | -9/Mines | Discovered new exit (range 5) 3245 | -9/Mines | Entered Exiles 3271 | -9/Exiles | Discovered new exit (range 15) 3295 | -9/Exiles | Met 8R-AWN 3320 | -9/Exiles | Met EX-HEX 3405 | -9/Exiles | Met EX-BIN 3429 | -9/Exiles | Aligned with FarCom system 3431 | -9/Exiles | Given EX-Vault access code 3473 | -9/Exiles | Opened EX-Vault 3486 | -9/Exiles | Found Trap Reconfigurator 3522 | -9/Exiles | Warned to stay clear of 0b10 Research branches 3569 | -9/Exiles | Met EX-DEC 3642 | -9/Exiles | Discovered new exit (range 14) 3711 | -9/Exiles | Identified exit to Mines 3822 | -9/Exiles | Visited The Gauntlet 4253 | -9/Exiles | Learned location of Zion (-6) 4319 | -9/Exiles | Left Exiles lab with Trap Reconfigurator 4319 | -9/Exiles | Entered Mines 4581 | -8/Mines | Discovered new exit (range 12) 4601 | -8/Mines | Identified exit to Materials 4625 | -8/Mines | Entered Materials 4625 | -8/Materials | Evolved 2 slots: Utility x2 5179 | -8/Materials | Core integrity fell below 50% 5188 | -8/Materials | Core integrity fell below 20% 5195 | -8/Materials | Destroyed by G-47 Trooper with Particle Gun Last Messages --------------- 05176_ Dropped Imp. Flight Unit. 05178_ Slug penetrates G-50 Soldier. 05178_ Shotgun destroyed. 05179_ R-06 Scavenger collects Prototype Energy Gun. 05179_ U-05 Engineer builds a Door. 05182_ Trap Reconfigurator destroyed. 05184_ K-01 Serf collects debris. 05184_ R-06 Scavenger collects Prototype Energy Gun. 05185_ Slug penetrates Wall. 05187_ R-06 Scavenger collects Weight Redist. System. 05187_ Critical hit (Burn: +37). 05190_ K-01 Serf collects debris. 05194_ Triggered Blade Trap. 05194_ Massive razor-sharp blades shoot up from within the floor. 05194_ System Shield severed. 05194_ Imp. Signal Interpreter severed. Map ----- +----------------------------------------------------+ | ?????????????????????????????????????????????????? | | ?????????????????????????????????????????????????? | | ?????????????????????????????????????????????????? | | ?????????????????????????????????????????????????? | | ?????????????????????????????????????????????????? | | ?????????????????????????????????????????????????? | | ?????????????????????????????????????????????????? | | ?????????????????????????????????????????????????? | | ?????????????????????????????????????????????????? | | ?????????????????????????????????????????????????? | | ?????????????????????????????????????????????????? | | ?????????????????????????????????????????????????? | | ?????????????????????????????????????????????????? | | ???????????????? ??????????????????????????????? | | ????????????????? ??????????????????????????????? | | ?????????????????? ?????????????????????????????? | | ??????????????????#w#????????????????????????????? | | ??????????????????# ???????????????????????????? | | ??????????????????# ???????????????????????????? | | ??????????????????# ??????????????????????????? | | ??????????????????# ????????????????w?????????? | | ??????????????????# ?#######?????????????????? | | ??????????????????# ## #?????????????????? | | ??????????????????# ######a ????????? | | ??????????????????+ g g ???????????? | | ??????????w???????# u@ #?????????????????? | | ??????????????????######## #?????????????????? | | ??????????????????######### Y ##?????????????????? | | ??????????????????# #gk #??????????????????? | | ??????????????????# # g #??????????????????? | | ??????????????????# """ !+=h #???????????####???? | | ??????????????????# """ # g #??????????? ???? | | ??????????????????# """ !# ##########? = ????? | | ??????????????????# ?# # ?????? | | ??????????????????# """ ?# # ??????? | | ??????????????????# """ ??# /%"???????? | | ??????????????????# """ ??# "%% # "???????? | | ???????????????????? ???# """ #?????????? | | ???????????????????? ???# """ ##?????????? | | ????????????????????##????# #??????????? | | ??????????????????????????+ / #??????????? | | ??????????????????????????# "T" /[ + ???? | | ??????????????????????????# # #??? | | ??????????????????????????# % #??######?## | | ???????????????????????#####+###### ########?? | | ???????????????????????# ## #?"" | | ???????????????????????# " " " ## # "" | | ???????????????????????# "" "" ## # "T | | ??????????????????????## " %%""" #####+### + "" | | ??????????????????????## #! ## # "" | +----------------------------------------------------+ Best States ------------- Heat Dissipation 31 Energy Generation 10 Energy Capacity 250 Matter Stores 300 Matter Capacity 300 Sight Range 16 Terrain Scan Density 10 Armor Coverage 150 Resistance: KI 20 Evasion (%) 50 Recoil Reduction 3 Defensive Hacking 10 Item Schematics ----------------- None Robot Schematics ------------------ None Fabricated ------------ Nothing Repaired ---------- Nothing Alien Tech Used ----------------- None Achievements -------------- None Challenges ------------ None Game ------ Seed IntegrityActuatorChainsword Manual? 0 Play Time 00:24:50 Cumulative 20.2 hours Start 2025.10.12 @ 14:08:02 End 2025.10.12 @ 14:34:24 Sessions 1 Manual Loads 0 Difficulty Rogue Special Mode None Game No. 58 Rogue 58 Adventurer 0 Explorer 0 Win Type - Total 0 Types 0/0/0/0/0/0/0/0/0/0 Lore% 32 Gallery% 28 Achievement% 29 Wizard Run 0 Options --------- Layout 1 ASCII 0 Keyboard 0 Movement Numpad Keybinds 0 Fullscreen 1 Font 24/Smallcaps Map View 50x35 Zoom Use 0% Tactical HUD 1 Map Filters NONE Filters NONE Steam 1 RUN: 6032c565-4c63-4b2f-9f5b-28da2678d1f5